Cogmind - Beta 11.1 @@@ ROGUE MODE // 2022.07.04 @ 21:23:38 Player: Roadie Result: Destroyed by G-47 Trooper with Particle Gun Performance ------------- Evolutions (2) 1000 Regions Visited (6) 1200 Robots Destroyed (56) 280 Value Destroyed (1854) 1854 Prototype IDs (31) 620 Alien Tech Used (0) 0 Bonus (371) 371 TOTAL SCORE: 5325 Bonus ------- High Alert Combat Kills 26 Follower Combat Kills 58 Aligned with FarCom 300 Friendly Fire -13 Cogmind --------- Core Integrity 0/550 Matter 247/300 Energy 150/160 System Corruption 3% Temperature Hot (228) Movement Treading (152) Location -8/Storage Parts ------- > --- POWER (1) -------- Light Nuclear Core > --- PROPULSION (4) --- Light Treads Light Treads Advanced Treads Advanced Treads > --- UTILITY (4) ------ Medium Storage Unit Particle Charger Light Armor Plating System Shield > --- WEAPON (2) ------- Beam Rifle > --- INVENTORY (10) --- Improved Ion Engine Improved Heat Sink Advanced Visual Processing Unit Improved Signal Interpreter Terrain Scanner Sensor Drone Bay (17/20) Beam Rifle Datajack Field Lobotomy Kit (2) Peak State ------------ > --- POWER ------------ Light Deuterium Engine > --- PROPULSION ------- Light Treads Advanced Treads Advanced Treads Compact Wheel > --- UTILITY ---------- Cryofiber Web Medium Storage Unit Advanced Targeting Computer System Shield > --- WEAPON ----------- Heavy Particle Cannon Improved Assault Rifle > --- INVENTORY -------- Improved Ion Engine Improved Heat Sink Structural Scanner Particle Charger Light Armor Plating Sensor Drone Bay Mini Grenade Launcher Datajack Field Lobotomy Kit [Rating: 30] Favorites ----------- Power Ion Engine Engine Ion Engine Power Core Light Nuclear Core Propulsion Advanced Treads Treads Advanced Treads Leg Aluminum Leg Wheel Compact Wheel Hover Unit Combat Airjet Flight Unit Flight Unit Utility Cryofiber Web Device Cryofiber Web Storage Medium Storage Unit Processor Advanced Targeting Computer Hackware System Shield Protection Light Armor Plating Weapon Heavy Particle Cannon Energy Gun Medium Laser Energy Cannon Heavy Particle Cannon Ballistic Gun Improved Assault Rifle Launcher Mini Grenade Launcher Special Weapon Field Lobotomy Kit Special Melee Weapon Datajack Build | -11 -10 -10 -10 -9 -8 -8 ------- Run | Scr Mat Min Exi Min Mat Sto Slots Evolved 4 | . . . . . 4 . Power . | . . . . . . . Propulsion 2 | . . . . . 2 . Utility 2 | . . . . . 2 . Weapon . | . . . . . . . Parts Attached 102 | 6 6 6 . 13 43 28 Power 15 | 1 3 1 . 1 4 5 Engine 12 | 1 1 1 . 1 4 4 Core 3 | . 2 . . . . 1 Reactor . | . . . . . . . Propulsion 43 | 2 2 2 . 4 17 16 Treads 22 | . . . . . 6 16 Leg 2 | . . 2 . . . . Wheel 12 | 2 . . . 4 6 . Hover 2 | . . . . . 2 . Flight 5 | . 2 . . . 3 . Utility 24 | 1 1 1 . 3 13 5 Device 12 | . 1 1 . 1 7 2 Storage 5 | 1 . . . 1 3 . Processor 1 | . . . . . 1 . Hackware 2 | . . . . . . 2 Protection 4 | . . . . 1 2 1 Artifact . | . . . . . . . Weapon 20 | 2 . 2 . 5 9 2 Energy Gun 13 | 2 . 1 . 3 5 2 Energy Cannon 1 | . . . . . 1 . Ballistic Gun 1 | . . . . . 1 . Ballistic Cannon . | . . . . . . . Launcher 3 | . . 1 . . 2 . Special Weapon 1 | . . . . 1 . . Impact Weapon . | . . . . . . . Slashing Weapon . | . . . . . . . Piercing Weapon . | . . . . . . . Special Melee Weapon 1 | . . . . 1 . . Unidentified Prototypes 2 | . . 1 . . 1 . Parts Lost 17 | . 1 2 . . 8 6 Power 4 | . . 1 . . 1 2 Propulsion 5 | . 1 . . . 3 1 Utility 4 | . . 1 . . 2 1 Weapon 4 | . . . . . 2 2 Highest Loss Streak 6 | . 1 1 . . 6 2 To Critical Strikes . | . . . . . . . Average Slot Usage (%) 81 | . 87 71 71 76 70 96 Engine 8 | . 2 12 14 14 4 5 Core 1 | . 11 . . . . 3 Treads 15 | . . . . . 15 32 Leg 8 | . . 19 28 22 . . Wheel 3 | . 17 . . 5 3 2 Flight 1 | . 7 8 . . . . Device 12 | . 11 14 14 13 16 8 Storage 5 | . 11 . . 2 9 9 Processor 3 | . . . . . 4 5 Hackware 3 | . . . . . . 8 Protection 2 | . . . . . 3 3 Energy Gun 8 | . 25 13 14 10 2 4 Energy Cannon 4 | . . . . . 4 8 Ballistic Gun 1 | . . . . . . 3 Naked Turns . | . . . . . . . Heaviest Build 31 | 13 14 23 21 27 31 30 Greatest Support 84 | 20 20 20 20 32 66 84 Greatest Overweight (x) 3 | 2 1 1 1 1 3 1 Average Overweight (x) . | . . . 1 . . . Largest Inventory Capacity 10 | 8 8 5 5 8 10 10 Average Capacity 7 | 6 7 5 5 5 8 10 Most Carried 10 | 3 8 5 5 8 9 10 Average Carried 6 | 1 4 4 4 5 6 9 Final Capacity 10 | 8 5 5 5 8 10 10 Final Carried 9 | 2 5 5 5 8 9 9 Class Distribution -------------------- 62% | Mutant 36% | Scavenger-Mutant Dominant Class ---------------- Mutant | -10/Materials Mutant | -10/Mines Mutant | -10/Exiles Mutant | -9/Mines Mutant | -8/Materials Scavenger-Mutant | -8/Storage Resources | -11 -10 -10 -10 -9 -8 -8 ----------- Run | Scr Mat Min Exi Min Mat Sto Matter Collected 1453 | 175 143 79 . 130 525 401 Remotely . | . . . . . . . Salvage Created 1901 | . 214 152 . 48 514 973 Parts 106 | . 14 5 . 1 24 62 Haulers Intercepted . | . . . . . . . Recyclers Shooed 5 | . 1 . . . 2 2 Parts Field Recycled . | . . . . . . . Retrieved Matter . | . . . . . . . Parts Self-Destructed . | . . . . . . . Prevented . | . . . . . . . Kills | -11 -10 -10 -10 -9 -8 -8 ------- Run | Scr Mat Min Exi Min Mat Sto Combat Hostiles Destroyed 46 | . 6 6 . 1 15 18 Melee 4 | . . . . . . 4 Guns 15 | . 6 2 . 1 . 6 Cannons 10 | . . . . . 2 8 AOE 16 | . . 3 . . 13 . Classes Destroyed 10 | . 3 . . . 5 2 Worker 1 | . . . . . 1 . Builder 1 | . . . . . 1 . Recycler 4 | . . . . . 3 1 Watcher 4 | . 1 . . . 2 1 Swarmer 12 | . 3 3 . . 6 . Grunt 21 | . 3 3 . 1 6 8 Brawler 1 | . . . . . . 1 Duelist 1 | . . . . . . 1 Sentry 10 | . . . . . 2 8 Hunter 1 | . . . . . 1 . Best Kill Streak 4 | . 2 3 . 1 4 3 Combat Bots Only 4 | . 2 3 . 1 4 3 Max Kills in Single Turn 3 | . 1 3 . 1 2 1 Gunslinging . | . . . . . . . Exploded 3 | . . 3 . . 2 . Melee 1 | . . . . . . 1 Uniques/NPCs Destroyed . | . . . . . . . Combat | -11 -10 -10 -10 -9 -8 -8 -------- Run | Scr Mat Min Exi Min Mat Sto Damage Taken 3312 | . 220 217 . 130 1108 1637 Core 708 | . 65 66 . 27 316 234 Absorbed by Shields . | . . . . . . . Regen/Repaired (Parts) 389 | . . . . . . 389 Core Remaining (%) 68 | 100 . . . 36 . . Volleys Fired 170 | . 24 28 . 11 47 60 Largest 2 | . 2 1 . 1 1 2 Hottest 131 | . 90 50 . 50 75 131 Shots Fired 239 | . 44 28 . 11 47 109 Gun 146 | . 44 27 . 8 16 51 Cannon 67 | . . . . . 9 58 Launcher 23 | . . 1 . . 22 . Special 3 | . . . . 3 . . Kinetic 14 | . . . . . . 14 Thermal 189 | . 44 27 . 8 15 95 Explosive 23 | . . 1 . . 22 . Electromagnetic 10 | . . . . . 10 . Robot Hit Streak 15 | . 5 7 . 4 9 15 Robot Miss Streak 4 | . 4 3 . 2 3 4 Penetration Max . | . . . . . . . Secondary Targets . | . . . . . . . Shots Hit Robots 137 | . 22 18 . 7 25 65 Core Hits 84 | . 14 8 . 3 33 26 Critical Kills . | . . . . . . . Critical Parts Destroyed . | . . . . . . . Critical Strikes 8 | . 3 4 . . . 1 Burn 8 | . 3 4 . . . 1 Melee Attacks . | . . . . . . . Impact . | . . . . . . . Slashing . | . . . . . . . Piercing . | . . . . . . . Sneak Attacks . | . . . . . . . Combat Hostiles . | . . . . . . . Follow-up Attacks . | . . . . . . . Damage Inflicted 4235 | . 349 383 . 61 2008 1434 Guns 1160 | . 294 247 . 61 132 426 Cannons 1209 | . . . . . 225 984 Explosions 1842 | . 55 136 . . 1651 . Melee . | . . . . . . . Ramming 24 | . . . . . . 24 Kinetic 139 | . . . . . . 139 Thermal 2194 | . 294 247 . 61 321 1271 Explosive 1756 | . . 136 . . 1620 . Electromagnetic 122 | . 55 . . . 67 . Impact . | . . . . . . . Slashing . | . . . . . . . Piercing . | . . . . . . . Highest Corruption 3 | . . . . . 1 3 Average Corruption 2 | . . . . . 1 2 Corruption Purged . | . . . . . . . Corruption Blocked . | . . . . . . . Effects 34 | . . . . . 4 30 Message Errors 10 | . . . . . 1 9 Matter Fused 10 | . . . . . . 10 Heat Flow Errors 3 | . . . . . . 3 Energy Discharges 6 | . . . . . 3 3 Data Loss (minor) 3 | . . . . . . 3 Data Loss (major) 1 | . . . . . . 1 Weapon Failures 1 | . . . . . . 1 Overload Shots . | . . . . . . . Overflow Damage 49 | . . 1 . . 45 3 Projectiles 10 | . . . . . 7 3 Explosions 39 | . . 1 . . 38 . Melee . | . . . . . . . Knockbacks 1 | . . . . . . 1 Impact 1 | . . . . . . 1 Kinetic . | . . . . . . . Secondary . | . . . . . . . Self-Inflicted Damage 131 | . 11 . . . 52 68 Shots 5 | . 1 . . . 3 1 Rammed 4 | . . . . . . 4 Targets Rammed 8 | . . . . . . 8 Kicked . | . . . . . . . Crushed 4 | . . . . . . 4 Highest Temperature 324 | . 108 20 . 30 57 324 Average Temperature 82 | . 29 8 . 12 26 109 Received Heat Transfer 1122 | . 66 69 . 51 279 657 Effects 3 | . . . . . . 3 Shutdowns 1 | . . . . . . 1 Interference 2 | . . . . . . 2 Siege Activations . | . . . . . . . Robots Corrupted . | . . . . . . . Combat Hostiles . | . . . . . . . Parts Fried . | . . . . . . . Impact Corruptions . | . . . . . . . Robots Melted 1 | . . 1 . . . . Combat Hostiles 1 | . . 1 . . . . Parts Melted 9 | . 3 2 . . 1 3 Heat Transferred 4937 | . 1015 1036 . 185 481 2220 Parts Sabotaged . | . . . . . . . Parts Stolen . | . . . . . . . Parts Stripped . | . . . . . . . Power Chain Reactions 1 | . . . . . 1 . Missiles Intercepted . | . . . . . . . Alert | -11 -10 -10 -10 -9 -8 -8 ------- Run | Scr Mat Min Exi Min Mat Sto Peak Influence 471 | . 215 230 . 31 471 346 Initial 145 | . . 83 . . . 145 Average 129 | . 103 92 . 1 278 126 Maximum Alert Level 2 | . 1 1 . . 2 1 Low Security (%) 72 | 100 85 87 . 100 25 77 Level 1 20 | . 14 12 . . 42 22 Level 2 7 | . . . . . 31 . Level 3 . | . . . . . . . Level 4 . | . . . . . . . Level 5 . | . . . . . . . High Security . | . . . . . . . Max Security . | . . . . . . . Squads Dispatched 8 | . . 1 . . 5 2 Investigation 3 | . . 1 . . 1 1 Extermination . | . . . . . . . Reinforcement 5 | . . . . . 4 1 Assault . | . . . . . . . Garrison . | . . . . . . . Intercept . | . . . . . . . Searches Triggered . | . . . . . . . Construction Impeded 1 | . . . . . 1 . Haulers Reinforced . | . . . . . . . Active Scanning Responses . | . . . . . . . Cargo Convoy Interrupts . | . . . . . . . Stealth | -11 -10 -10 -10 -9 -8 -8 --------- Run | Scr Mat Min Exi Min Mat Sto Distress Signals 11 | . 2 . . . 7 2 Communications Jammed . | . . . . . . . Distress Signals . | . . . . . . . Times Spotted 83 | . 12 6 . 8 32 25 Peak Tracking Total 6 | . 5 3 . 3 6 3 Tactical Retreats 7 | . 1 . . . 4 2 Traps | -11 -10 -10 -10 -9 -8 -8 ------- Run | Scr Mat Min Exi Min Mat Sto Traps Triggered 2 | . . . . . . 2 Indirectly . | . . . . . . . Trap Hack Attempts . | . . . . . . . Triggered . | . . . . . . . Disarmed 1 | . . . . . 1 . Reprogrammed . | . . . . . . . Reused . | . . . . . . . Traps Extracted . | . . . . . . . Installed . | . . . . . . . Triggered . | . . . . . . . Machines | -11 -10 -10 -10 -9 -8 -8 ---------- Run | Scr Mat Min Exi Min Mat Sto Machines Disabled 10 | . 1 . . . 5 4 Max in Single Turn 2 | . 1 . . . 2 1 Machines Sabotaged . | . . . . . . . Garrisons Compromised . | . . . . . . . Overloaded Fab Kills . | . . . . . . . Hacking | -11 -10 -10 -10 -9 -8 -8 --------- Run | Scr Mat Min Exi Min Mat Sto Machines Accessed 21 | . 1 2 2 . 5 11 Terminals 11 | . 1 . . . 3 7 Fabricators . | . . . . . . . Repair Stations 2 | . . . . . . 2 Recycling Units 3 | . . . . . 1 2 Scanalyzers 1 | . . . . . 1 . Garrison Access . | . . . . . . . Total Hacks 61 | . 2 2 3 . 19 35 Successful 46 | . 1 2 3 . 14 26 Failed 15 | . 1 . . . 5 9 Catastrophic 3 | . . . . . . 3 Database Lockouts . | . . . . . . . Manual 2 | . . . 1 . . 1 Terminals 28 | . 2 . . . 10 16 Fabricators . | . . . . . . . Repair Stations 15 | . . . . . . 15 Recycling Units 6 | . . . . . 2 4 Scanalyzers 7 | . . . . . 7 . Garrison Access . | . . . . . . . Terminal Hacks 22 | . 1 2 3 . 6 10 Record 3 | . . . 2 . 1 . Part Schematic 1 | . . . . . . 1 Robot Schematic 1 | . . . . . . 1 Robot Analysis 1 | . . . . . 1 . Prototype ID Bank 3 | . 1 . . . 1 1 Open Door 4 | . . 2 . . . 2 Branch Access Points 1 | . . . . . . 1 Alert Level 1 | . . . . . 1 . Unreport Threat 1 | . . . . . . 1 Disarm Traps 1 | . . . . . 1 . Surveillance Status 1 | . . . . . . 1 Recall Reinforcements 1 | . . . . . 1 . Hauler Manifests 1 | . . . . . . 1 Zone Layout 1 | . . . . . . 1 EX-Prototype ID Bank 1 | . . . 1 . . . Fabricator Hacks . | . . . . . . . Repair Station Hacks 12 | . . . . . . 12 Scan Component 7 | . . . . . . 7 Repair 5 | . . . . . . 5 Recycling Unit Hacks 6 | . . . . . 2 4 Report Inventory 3 | . . . . . 1 2 Retrieve Components 3 | . . . . . 1 2 Scanalyzer 6 | . . . . . 6 . Insert Component 4 | . . . . . 4 . Analyze 2 | . . . . . 2 . Garrison Access Hacks . | . . . . . . . Unauthorized Hacks . | . . . . . . . Terminals . | . . . . . . . Fabricators . | . . . . . . . Repair Stations . | . . . . . . . Recycling Units . | . . . . . . . Scanalyzers . | . . . . . . . Garrison Access . | . . . . . . . Data Cores Recovered . | . . . . . . . Used . | . . . . . . . Hacking Detections 10 | . 1 . . . 3 6 Full Trace Events 3 | . . . . . 2 1 Feedback Events 1 | . . . . . 1 . Corruption 1 | . . . . . 1 . Feedback Blocked . | . . . . . . . Robot Schematics Acquired 1 | . . . . . . 1 Robots Built . | . . . . . . . Authchips . | . . . . . . . Time . | . . . . . . . Total Robot Build Rating . | . . . . . . . Part Schematics Acquired 3 | . . . . . 2 1 Parts Built . | . . . . . . . Authchips . | . . . . . . . Time . | . . . . . . . Total Part Build Rating . | . . . . . . . Parts Repaired 5 | . . . . . . 5 Time 172 | . . . . . . 172 Parts Recycled . | . . . . . . . Recycled Matter . | . . . . . . . Retrieved Matter . | . . . . . . . Retrieved Components 28 | . . . . . 9 19 Parts Scanalyzed 2 | . . . . . 2 . Part Schematics Acquired 2 | . . . . . 2 . Parts Damaged . | . . . . . . . Bothacking | -11 -10 -10 -10 -9 -8 -8 ------------ Run | Scr Mat Min Exi Min Mat Sto Used RIF Installer . | . . . . . . . Robots Hacked . | . . . . . . . Non-combat . | . . . . . . . Combat . | . . . . . . . Robot Hacks Applied . | . . . . . . . Relay Couplers Released . | . . . . . . . Fabnet Peak Effective % . | . . . . . . . Robots Rewired . | . . . . . . . Allies Hacked . | . . . . . . . Hacks Repelled . | . . . . . . . Allies | -11 -10 -10 -10 -9 -8 -8 -------- Run | Scr Mat Min Exi Min Mat Sto Total Allies 2 | . . . . 2 . . Largest Group 2 | . . . . 2 1 . Highest-Rated Group 24 | . . . . 24 8 . Highest-Rated Ally 16 | . . . . 16 8 . Total Orders 3 | . . . . . 3 . EXPLORE 3 | . . . . . 3 . Ally Attacks 32 | . . . . 16 16 . Total Damage 271 | . . . . 150 121 . Kills 5 | . . . . 4 1 . Allies Corrupted . | . . . . . . . Allies Melted . | . . . . . . . Field Lobotomies 2 | . . . . 2 . . Intel | -11 -10 -10 -10 -9 -8 -8 ------- Run | Scr Mat Min Exi Min Mat Sto Robot Analysis Total 1 | . . . . . 1 . Derelict Logs Recovered 2 | . . 1 . 1 . . Drone Launches 20 | . . . . . 20 . Drone Recoveries 17 | . . . . . 17 . Exploration | -11 -10 -10 -10 -9 -8 -8 ------------- Run | Scr Mat Min Exi Min Mat Sto Turns Passed 5941 | 51 239 814 523 974 1195 2145 Spaces Moved 3298 | 46 221 804 275 559 558 835 Core 52 | 16 . . . . 36 . Treads 1053 | . . . . . 218 835 Legs 944 | . . 290 275 379 . . Wheels 404 | 30 121 . . 180 73 . Hover 219 | . . . . . 219 . Flight 626 | . 100 514 . . 12 . Fastest Speed 29 | 50 37 37 190 80 29 145 Average Speed 129 | 80 62 92 190 159 116 153 Slowest Speed 285 | 150 95 190 190 190 285 240 Overloaded Moves . | . . . . . . . Propulsion Burnouts . | . . . . . . . Robots Hopped . | . . . . . . . Cave-ins Triggered 1 | . . . . . . 1 Exploration Rate (%) 57 | 3 34 99 67 82 36 78 Regions Visited 6 Branch Regions 4 Pre-discovered Areas . | . . . . . . . Known Exits Taken 1 | . . . . . 1 . Unknown Exits Taken 5 | 1 1 1 1 1 . . Scrap Searched 3 | . . 1 . 2 . . Spaces Dug . | . . . . . . . Terrain Destroyed 213 | . . 9 . . 165 39 Melee . | . . . . . . . Projectile 14 | . . . . . . 14 AOE 199 | . . 9 . . 165 25 Terrain Rammed . | . . . . . . . Walls Destroyed . | . . . . . . . Machines Disabled . | . . . . . . . Actions | -11 -10 -10 -10 -9 -8 -8 --------- Run | Scr Mat Min Exi Min Mat Sto Total 4735 | 59 277 849 276 630 1054 1590 Wait 981 | . 11 4 . 9 355 602 Move 3292 | 45 220 803 274 558 557 835 Hop . | . . . . . . . Pick Up 111 | 8 9 5 1 22 30 36 Fast Attach . | . . . . . . . Attach 47 | 6 2 2 . 4 20 13 Detach 6 | . 1 . . . 5 . Swap 55 | . 4 4 . 9 23 15 Drop 65 | . 6 3 1 17 17 21 Fire 170 | . 24 28 . 11 47 60 Melee . | . . . . . . . Ram . | . . . . . . . Kick . | . . . . . . . Crush 8 | . . . . . . 8 Escape Stasis . | . . . . . . . Rewire . | . . . . . . . Trap . | . . . . . . . Miscellaneous . | . . . . . . . Route ------- -11/Scrapyard -10/Materials -10/Mines (discovered 3 exits: *Mat x2 / *Exi) -10/Exiles (discovered 2 exits: [*Min x2]) -9/Mines -8/Materials (discovered 2 exits: [*Fac] / *Sto) -8/Storage (discovered 1 exit: Rec) History --------- Turn | Location | Event 20 | -11/Scrapyard | Discovered new exit (range 16) 52 | -11/Scrapyard | Entered Materials 140 | -10/Materials | Discovered new exit (range 9) 291 | -10/Materials | Entered Mines 294 | -10/Mines | Met a Derelict shopkeep closing up shop 336 | -10/Mines | Identified exit to Materials 337 | -10/Mines | Discovered exit to Materials (range 3) 389 | -10/Mines | Found the Drone Emporium 394 | -10/Mines | Found Prototype Device 501 | -10/Mines | Deemed a non-threat by the Exiles lab entrance 502 | -10/Mines | Discovered new exit (range 5) 533 | -10/Mines | Received a Rocket Launcher from a helpful Derelict 537 | -10/Mines | Identified Sensor Drone Bay 584 | -10/Mines | Core integrity fell below 50% 891 | -10/Mines | Build established: Mutant 1105 | -10/Mines | Entered Exiles 1140 | -10/Exiles | Discovered new exit (range 15) 1197 | -10/Exiles | Met 8R-AWN 1225 | -10/Exiles | Met EX-HEX 1284 | -10/Exiles | Met EX-BIN 1311 | -10/Exiles | Aligned with FarCom system 1313 | -10/Exiles | Given EX-Vault access code 1358 | -10/Exiles | Opened EX-Vault 1372 | -10/Exiles | Found Field Lobotomy Kit 1417 | -10/Exiles | Warned to stay clear of 0b10 Research branches 1466 | -10/Exiles | Met EX-DEC 1609 | -10/Exiles | Discovered new exit (range 10) 1628 | -10/Exiles | Left Exiles lab with Field Lobotomy Kit 1628 | -10/Exiles | Entered Mines 1976 | -9/Mines | Assimilated G-34 Mercenary with FLK Orb 1986 | -9/Mines | Assimilated G-47 Trooper with FLK Orb 2188 | -9/Mines | Assembled infested the area 2193 | -9/Mines | Assisted by a Guerilla fighting off Assembled 2444 | -9/Mines | Discovered new exit (range 4) 2602 | -9/Mines | Entered Materials 2602 | -8/Materials | Accompanied by 1 ally 2602 | -8/Materials | Evolved 4 slots: Propulsion x2, Utility x2 2603 | -8/Materials | Identified exit to Storage 2734 | -8/Materials | Discovered new exit (range 28) 2936 | -8/Materials | Build established: Scavenger-Mutant 3017 | -8/Materials | Lost 6 parts (1p2n1u2w) 3093 | -8/Materials | Core integrity fell below 50% 3263 | -8/Materials | Build established: Mutant 3797 | -8/Materials | Entered Storage 4375 | -8/Storage | Crushed by falling debris 4720 | -8/Storage | Repaired Adv. Treads 4761 | -8/Storage | Repaired Cryofiber Web 4795 | -8/Storage | Repaired Imp. Ion Engine 4846 | -8/Storage | Repaired Lgt. Treads 4917 | -8/Storage | Identified exit to Recycling 4935 | -8/Storage | Build established: Scavenger-Mutant 5355 | -8/Storage | Core integrity fell below 20% 5676 | -8/Storage | Repaired Adv. Treads 5942 | -8/Storage | Destroyed by G-47 Trooper with Particle Gun Last Messages --------------- Downloading schematic... Fusion Compressor Rating: 5 Schematic downloaded. >>Enumerate(Surveillance) Retrieving latest reported positions... Found 1 active surveillance squad. Downloaded coordinate data. >>Layout(Zone) Retrieving Zone 9F layout... Downloaded map data. #N KJ1ALC2V J64JIAXIMJCV& A-02 Transporter destroyed. G-47 Trooper destroyed. Packing Station disabled. Critical hit (Burn: +37). Hvy. Particle Cannon destroyed. Critical hit (Burn: +37). R-06 Scavenger collects Med. Storage Unit. R-06 Scavenger collects Hcp. Matter Pod. Map ----- +----------------------------------------------------+ | ##+##### # """ # #T####?????? | | % # "R" # ###????????? | | #####+#######+##### # " " # #??????????? | | ###?T #??# #?# # # #??????????? | | #####"#?## """ #?# + # #??????????? | | #????# """ #?# ! # # #??????????? | | #????## """ ### !! ##+#####+##?????????? | | #?????# / !! # #?????????? | | ## #?????# # # #?????????? | | + #?########/### # #?????????? | | # #?#! [+ + #?????????? | | # ### # #####+########%# #?????????? | | # + ! # #?# #??## # #?????????? | | # ###### |# #?# #??#"%########?????????? | | # #????# # #?# #??## #????????????????? | | # #??### # #?# ##### #????????????????? | | # #?## #####/## #?# / #????????????????? | | ## #?# % # #?# #r #????????????????? | | ## ### # ########## #????????????????? | | # ##""" +^ =! ! #????????????????? | | T ##""" #### =!! #????????????????? | | # ##""" #??# """""! #????????????????? | | ## ### #??# """""% u#?####???????????? | | # #?########??# """" " #?## ???????????? | | # #?????????### """" ### ???????????? | | T# #?????????# @ g # ???????????? | | %#%#?????????# !==[] ;w gg#?????????? | | ## #?????????# ===! g ##Tgg#?????????? | | ## #???###???####"!"#"T"######### ######?????????? | | ## #######??????#"Y"#####???????# #??????????????? | | #??????#"""#???????????# #??????????????? | | #??????#####???????????# #??????????????? | | #??????????????????????# ####???????????? | | ##########?????????????# #???????????? | | #" ##### ##########??????????#### #???????????? | | #"T#???# ## ##??????????# #???????????? | | # ##??# ## ##??????????# #???????????? | | ### #??#%## ##??????????# #####???????????? | | ##??# ## ##??????????## ##???????????????? | | #??# ###"""####???????????# #????????????????? | | ]] #??# ## T###???????????# #????????????????? | | ]]# #??# ## ####???????????# #????????????????? | | ######## #####+############???# #????????????????? | | %%% #####/#####????????????? | | ############# ?????????????????????????? | | ""#??????????????????????????????????????????????? | | T"###????????????????????????????????????????????? | | !!! #????????????????????????????????????????????? | | !!! #????????????????????????????????????????????? | | !!! ####?????????????????????????????????????????? | +----------------------------------------------------+ Best States ------------- Heat Dissipation 45 Energy Generation 14 Energy Capacity 275 Matter Stores 300 Matter Capacity 300 Sight Range 16 Terrain Scan Range 16 Terrain Scan Density 10 Base Temperature (-) 100 Armor Coverage 150 Evasion (%) 62 Targeting Accuracy 8 Recoil Reduction 4 Particle Charging 15 Defensive Hacking 10 Item Schematics ----------------- Seismic Detector | -8/Materials | Scanalyzed Datajack | -8/Materials | Scanalyzed Fusion Compressor | -8/Storage | Hacked Robot Schematics ------------------ B-36 Bruiser | -8/Storage | Hacked Fabricated ------------ Nothing Alien Tech Used ----------------- None Achievements -------------- Hey, That's Mine! It's Just You Release The Drones! Universal Adapter Challenges ------------ None Game ------ Seed HypervelocitySchematicCannon Manual? 0 Play Time 01:09:04 Cumulative 8.1 hours Start 2022.07.04 @ 20:14:57 End 2022.07.04 @ 21:23:38 Sessions 1 Manual Loads 0 Difficulty Rogue Special Mode None Game No. 8 Rogue 8 Adventurer 0 Explorer 0 Win Type - Total 0 Types 0/0/0/0/0/0/0/0/0 Lore% 12 Gallery% 13 Achievement% 14 Wizard Run 0 Options --------- ASCII 0 Keyboard 0 Movement Mouse Keybinds 0 Fullscreen 1 Font 24/Terminus Map View 76x50 Tactical HUD 0 Map Filters NONE Filters NONE Steam 1 RUN: 8497f1ae-4288-4764-a5c7-ae533fb5e8e3